bitfinex/quotes_BTCUSD_20250109
["timestamp","ask_amount","ask_price","bid_price","bid_amount"]
[1736460939188,1.9e-07,91856.0,91855.0,0.52758575]
[1736460940057,1.9e-07,91856.0,91855.0,0.77758575]
[1736460940261,0.217613,91906.0,91887.0,0.217657]
[1736460940692,0.15,91905.0,91887.0,0.217657]
[1736460941109,0.15,91905.0,91888.0,0.217656]
[1736460941326,0.0001704,91893.0,91888.0,0.217656]
[1736460942101,0.0001704,91893.0,91888.0,0.53961176]
[1736460943177,0.0001704,91893.0,91888.0,0.32295576]
[1736460943536,0.0001704,91893.0,91888.0,0.32195576]
[1736460944321,0.0001704,91893.0,91888.0,0.31295574]
[1736460944529,0.0001704,91893.0,91891.0,0.023]
[1736460944748,0.0001704,91893.0,91892.0,0.12838776]
[1736460944953,0.0001704,91893.0,91892.0,0.34603376]
[1736460945159,0.0001704,91893.0,91892.0,0.34494576]
[1736460946621,0.0001704,91893.0,91892.0,0.34594576]
[1736460947904,0.0001704,91893.0,91892.0,0.35394576]
[1736460948800,0.0001704,91893.0,91892.0,0.009]
[1736460948944,0.0001704,91893.0,91890.0,0.21764898]
[1736460949153,0.0001704,91893.0,91890.0,0.32194874]
[1736460950470,0.0001704,91893.0,91890.0,0.32994874]
[1736460950671,0.0001704,91893.0,91890.0,0.54759974]
[1736460951472,0.0001704,91893.0,91890.0,0.54859974]
[1736460951857,0.0001704,91893.0,91892.0,0.217646]
[1736460952059,0.0001704,91893.0,91892.0,0.32194576]
[1736460952312,0.0001704,91893.0,91892.0,0.34494576]
[1736460953407,0.0011704,91893.0,91892.0,0.35094576]
[1736460953972,0.0011704,91893.0,91892.0,0.34194574]
[1736460954126,0.0011704,91893.0,91892.0,0.41967111]
[1736460954963,0.217552,91932.0,91917.0,0.217587]
[1736460955188,0.217564,91927.0,91900.0,0.023]
[1736460955369,0.15,91926.0,91912.0,0.217597]
[1736460956308,0.00349405,91932.0,91913.0,0.10538763]
[1736460956530,0.00349405,91932.0,91920.0,0.217579]
[1736460956742,0.00349405,91932.0,91928.0,0.217559]
[1736460956943,0.00349405,91932.0,91929.0,0.10538747]
[1736460957144,0.00349405,91932.0,91929.0,0.32185776]
[1736460957357,0.00349405,91932.0,91931.0,0.217554]
[1736460957601,0.00049405,91932.0,91916.0,0.217587]
[1736460957810,0.00049405,91932.0,91920.0,0.217579]
[1736460958026,0.001,91926.0,91920.0,0.217579]
[1736460958234,0.001,91926.0,91925.0,0.217568]
[1736460958443,0.00249405,91932.0,91925.0,0.217568]
[1736460958901,0.00349405,91932.0,91931.0,0.20855398]
[1736460959254,0.00049405,91932.0,91931.0,0.31285374]
[1736460960313,0.00049405,91932.0,91931.0,0.37372541]
[1736460960511,0.00049405,91932.0,91927.0,0.217563]
[1736460960719,0.00049405,91932.0,91920.0,0.21758]
[1736460960917,0.00049405,91932.0,91920.0,0.32187976]
[1736460961130,0.00049405,91932.0,91920.0,0.53945976]
[1736460961509,0.00049405,91932.0,91920.0,0.10429976]
[1736460961756,0.00049405,91932.0,91931.0,0.001]
[1736460962138,0.00049405,91932.0,91921.0,0.217576]
[1736460962668,0.00049405,91932.0,91922.0,0.217575]
[1736460962882,0.00049405,91932.0,91926.0,0.217564]
[1736460963081,0.00049405,91932.0,91927.0,0.00108768]
[1736460963209,0.00039967,91932.0,91931.0,0.217554]
[1736460963415,0.00039967,91932.0,91931.0,0.32185376]
[1736460963858,0.00039967,91932.0,91931.0,0.31285374]
[1736460964797,0.00039967,91932.0,91931.0,0.31385374]
[1736460965749,0.15,91949.0,91935.0,0.217543]
[1736460965979,0.15,91949.0,91931.0,0.16905432]
[1736460965980,0.15014815,91949.0,91937.0,0.21754]
[1736460966997,0.15014815,91949.0,91918.0,0.217584]
[1736460966998,0.15,91947.0,91918.0,0.217584]
[1736460967260,0.20504541,91930.0,91891.0,0.1]
[1736460967510,0.217578,91921.0,91904.0,0.217617]
[1736460967790,0.15,91929.0,91905.0,0.10429976]
[1736460968041,0.15,91929.0,91922.0,0.217574]
[1736460968321,0.217516,91947.0,91907.0,0.217611]
[1736460968565,0.13665892,91932.0,91920.0,0.217579]
[1736460968736,0.001,91921.0,91920.0,0.32187876]
[1736460968985,0.001,91921.0,91920.0,0.31337279]
[1736460969244,0.001,91921.0,91920.0,0.00049405]
[1736460969990,0.217573,91923.0,91920.0,0.00049405]
[1736460970216,0.217573,91923.0,91920.0,0.00349405]
[1736460970668,0.217573,91923.0,91920.0,0.00049405]
[1736460970923,0.004,91921.0,91920.0,0.00049405]
[1736460971396,0.005,91921.0,91920.0,0.00049405]
[1736460971461,0.001,91921.0,91920.0,0.00049405]
[1736460971646,0.15,91930.0,91920.0,0.00049405]
[1736460971894,0.001,91923.0,91920.0,0.00049405]
[1736460972331,0.001,91923.0,91922.0,0.300675]
[1736460972554,0.001,91923.0,91922.0,0.40497476]
[1736460972772,0.007,91923.0,91922.0,0.40497476]
[1736460972976,0.001,91923.0,91922.0,0.40497476]
[1736460973187,0.02785973,91945.0,91944.0,0.217523]
[1736460973398,0.0010881,91965.0,91944.0,0.34357506]
[1736460973606,0.02901081,91964.0,91951.0,0.217507]
[1736460973831,0.217474,91965.0,91951.0,0.217507]
[1736460974036,0.2176352,91969.0,91951.0,0.20850698]
[1736460974245,0.0010881,91968.0,91951.0,0.20850698]
[1736460974421,0.15,91963.0,91951.0,0.20850698]
[1736460974650,0.0081706,91952.0,91951.0,0.20850698]
[1736460974839,0.00831875,91952.0,91951.0,0.20850698]
[1736460975812,0.00831875,91952.0,91951.0,0.26381498]
[1736460976216,0.00031875,91952.0,91951.0,0.26381498]
[1736460976423,0.00031875,91952.0,91951.0,0.20850698]
[1736460976670,0.00231875,91952.0,91951.0,0.20850698]
[1736460976873,0.00031875,91952.0,91951.0,0.20850698]
[1736460977295,0.00231875,91952.0,91951.0,0.20850698]
[1736460977495,0.00031875,91952.0,91951.0,0.20850698]
[1736460977740,0.00231875,91952.0,91951.0,0.20850698]
[1736460977950,0.00031875,91952.0,91951.0,0.39728684]
[1736460978359,0.00031875,91952.0,91951.0,0.39928684]
[1736460979039,0.00031875,91952.0,91951.0,0.41328682]
[1736460979251,0.00031875,91952.0,91951.0,0.49598682]
[1736460979463,0.00031875,91952.0,91951.0,0.49398682]
[1736460979665,0.00031875,91952.0,91951.0,0.69398682]
[1736460979880,0.00031875,91952.0,91951.0,0.69898682]
[1736460980059,0.00031875,91952.0,91951.0,0.69598682]
[1736460980261,0.00031875,91952.0,91951.0,0.49398682]
[1736460980464,0.00131875,91952.0,91951.0,0.94121277]
[1736460980645,0.00131875,91952.0,91951.0,0.93421277]
[1736460980850,0.00131875,91952.0,91951.0,0.50474682]
[1736460981049,0.00231875,91952.0,91951.0,0.51374682]
[1736460981251,0.00231875,91952.0,91951.0,0.50474682]
[1736460981476,0.00231875,91952.0,91951.0,0.60474682]
[1736460981679,0.00331875,91952.0,91951.0,0.61374682]
[1736460983021,0.00031875,91952.0,91951.0,0.60274682]
[1736460983430,0.00131875,91952.0,91951.0,0.60474682]
[1736460983749,0.00031875,91952.0,91951.0,0.61174682]
[1736460983949,0.00031875,91952.0,91951.0,0.5937468]
[1736460984185,0.00131875,91952.0,91951.0,0.5957468]
[1736460984382,0.00131875,91952.0,91951.0,0.6047468]
[1736460984632,0.00031875,91952.0,91951.0,0.5937468]
[1736460984957,0.00131875,91952.0,91951.0,0.4112667]
[1736460985167,0.00131875,91952.0,91951.0,0.3795067]
[1736460985366,0.00131875,91952.0,91951.0,0.002]
[1736460986128,0.00131875,91952.0,91951.0,0.011]
[1736460986307,0.15,91951.0,91928.0,0.42946595]
[1736460986519,0.217542,91936.0,91924.0,0.21757]
[1736460986717,0.217519,91946.0,91917.0,0.42946595]
[1736460986718,0.20497461,91940.0,91917.0,0.42946595]
[1736460986946,0.21758,91920.0,91903.0,0.21762]
[1736460987141,0.21758,91920.0,91905.0,0.217615]
[1736460987502,0.217572,91924.0,91911.0,0.2176]
[1736460988125,0.00010202,91924.0,91913.0,0.217596]
[1736460988268,0.003,91920.0,91908.0,0.217608]
[1736460988814,0.217582,91919.0,91908.0,0.217608]
[1736460989092,0.217582,91919.0,91908.0,0.20860798]
[1736460989472,0.217607,91909.0,91905.0,0.001]
[1736460989678,0.217592,91915.0,91897.0,0.217633]
[1736460989679,0.217592,91915.0,91901.0,0.217623]
[1736460989885,0.04225666,91914.0,91908.0,0.001]
[1736460990097,0.217597,91913.0,91908.0,0.001]
[1736460990305,0.217597,91913.0,91901.0,0.217623]
[1736460990552,0.217597,91913.0,91908.0,0.001]
[1736460990765,0.001,91909.0,91908.0,0.001]
[1736460990941,0.001,91909.0,91901.0,0.32192276]
[1736460991143,0.002,91914.0,91901.0,0.217623]
[1736460991350,0.20497461,91911.0,91901.0,0.217623]
[1736460992461,0.219598,91913.0,91884.0,0.0819]
[1736460992663,0.20497461,91911.0,91897.0,0.217634]
[1736460992971,0.001,91909.0,91897.0,0.435268]
[1736460993403,0.001,91909.0,91881.0,0.0489]
[1736460993404,0.0010881,91908.0,91880.0,0.217673]
[1736460993618,0.0010881,91908.0,91873.0,0.0819]
[1736460993619,0.15,91892.0,91873.0,0.0819]
[1736460993865,0.15,91889.0,91875.0,0.217685]
[1736460994068,0.15,91889.0,91876.0,0.217684]
[1736460994318,0.15,91889.0,91877.0,0.10429976]
[1736460994765,0.15,91889.0,91878.0,0.217679]
[1736460994961,0.217637,91896.0,91883.0,0.217667]
[1736460995104,0.15,91895.0,91883.0,0.217667]
[1736460995307,0.15,91895.0,91887.0,0.217657]
[1736460995756,0.217612,91907.0,91888.0,0.10538797]
[1736460995904,0.217612,91907.0,91888.0,0.10429976]
[1736460996111,0.15,91905.0,91893.0,0.217643]
[1736460996310,0.15,91903.0,91893.0,0.217643]
[1736460997340,0.003,91905.0,91894.0,0.10538789]
[1736460997539,0.003,91905.0,91901.0,0.217623]
[1736460997744,0.005,91903.0,91894.0,0.10429976]
[1736460997917,0.005,91903.0,91899.0,0.217628]
[1736460998126,0.007,91903.0,91899.0,0.217628]
[1736460999083,0.007,91903.0,91899.0,0.20862798]
[1736460999225,0.005,91903.0,91899.0,0.20862798]
[1736460999461,0.005,91903.0,91900.0,0.32192676]
[1736460999632,0.005,91903.0,91901.0,0.001088]
[1736460999833,0.008,91903.0,91902.0,0.32192276]
[1736461000274,0.001,91903.0,91902.0,0.32192276]
[1736461000475,0.003,91903.0,91902.0,0.32192276]
[1736461000879,0.15,91914.0,91902.0,0.32192276]
[1736461001082,0.001,91903.0,91902.0,0.32192276]
[1736461001820,0.001,91903.0,91902.0,0.34492276]
[1736461002542,0.02870148,91927.0,91919.0,0.217581]
[1736461002752,0.15,91931.0,91926.0,0.217564]
[1736461003011,0.15,91931.0,91921.0,0.217578]
[1736461003185,0.15,91931.0,91921.0,0.32187776]
[1736461003661,0.367547,91934.0,91921.0,0.32187776]
[1736461003864,0.15,91934.0,91926.0,0.217565]
[1736461004067,0.014,91931.0,91926.0,0.001]
[1736461004492,0.014,91931.0,91922.0,0.28917498]
[1736461004701,0.014,91931.0,91922.0,0.50674998]
[1736461004909,0.014,91931.0,91927.0,0.023]
[1736461004910,0.005,91931.0,91927.0,0.023]
[1736461005118,0.005,91931.0,91929.0,0.023]
[1736461005326,0.005,91931.0,91930.0,0.32294326]
[1736461005548,0.005,91931.0,91930.0,0.34485576]
[1736461005757,0.005,91931.0,91930.0,0.43371784]
[1736461006173,0.217467,91968.0,91951.0,0.217507]
[1736461006383,0.15,91967.0,91951.0,0.217507]
[1736461006823,0.217467,91968.0,91951.0,0.217507]
[1736461007235,0.2176362,91969.0,91951.0,0.32180676]
[1736461007408,0.00031875,91952.0,91951.0,0.32180676]
[1736461008935,0.00031875,91952.0,91951.0,0.31280674]
[1736461009236,0.2176362,91969.0,91951.0,0.31280674]
[1736461009447,0.217466,91968.0,91952.0,0.53930676]
[1736461009655,0.2176362,91969.0,91951.0,0.001]
[1736461009656,0.20497461,91961.0,91951.0,0.001]
[1736461010439,0.20497461,91961.0,91944.0,0.217522]
[1736461010703,0.0001702,91969.0,91944.0,0.217522]
[1736461010704,0.217491,91958.0,91952.0,0.001]
[1736461010840,0.217491,91958.0,91945.0,0.10429976]
[1736461011253,0.217491,91958.0,91951.0,0.001]
[1736461012078,0.230485,91961.0,91951.0,0.001]
[1736461012079,0.217504,91952.0,91951.0,0.001]
[1736461012514,0.217536,91939.0,91927.0,0.217563]
[1736461012716,0.217536,91939.0,91925.0,0.0802]
[1736461012717,0.217504,91952.0,91928.0,0.10538746]
[1736461013182,0.217504,91952.0,91936.0,0.217541]
[1736461013321,0.03540773,91952.0,91937.0,0.10429976]
[1736461013725,0.217507,91951.0,91937.0,0.10429976]
[1736461013927,0.217507,91951.0,91937.0,0.09529974]
[1736461014941,0.217517,91947.0,91933.0,0.217547]
[1736461015139,0.217517,91947.0,91935.0,0.217545]
[1736461016204,0.217517,91947.0,91934.0,0.10429976]
[1736461016396,0.217517,91947.0,91935.0,0.217545]
[1736461016997,0.217517,91947.0,91937.0,0.21754]
[1736461017344,0.001,91947.0,91938.0,0.217537]
[1736461017547,0.001,91947.0,91942.0,0.217527]
[1736461017721,0.003,91947.0,91942.0,0.217527]
[1736461018020,0.02840773,91952.0,91942.0,0.217527]
[1736461018237,0.02840773,91952.0,91946.0,0.217517]
[1736461018361,0.15,91957.0,91946.0,0.217517]
[1736461018362,0.15,91955.0,91946.0,0.217517]
[1736461018577,0.15,91955.0,91950.0,0.217508]
[1736461018778,0.15,91955.0,91939.0,0.10429976]
[1736461018973,0.15,91955.0,91939.0,0.09529974]
[1736461019183,0.002,91947.0,91942.0,0.217526]
[1736461019424,0.004,91947.0,91943.0,0.10429976]
[1736461019677,0.17891047,91956.0,91943.0,0.10429976]
[1736461019882,0.217497,91955.0,91944.0,0.217523]
[1736461020101,0.15,91954.0,91944.0,0.217523]
[1736461020699,0.002,91947.0,91944.0,0.27145788]
[1736461020939,0.15,91954.0,91944.0,0.217523]
[1736461021287,0.005,91954.0,91944.0,0.217523]
[1736461022549,0.17891047,91956.0,91944.0,0.217523]
[1736461022763,0.002,91954.0,91944.0,0.217523]
[1736461022962,0.002,91947.0,91944.0,0.217523]
[1736461023146,0.002,91954.0,91944.0,0.217523]
[1736461023550,0.005,91954.0,91944.0,0.217523]
[1736461023751,0.217497,91955.0,91944.0,0.217523]
[1736461023952,0.002,91947.0,91944.0,0.217523]
[1736461024171,0.002,91947.0,91944.0,0.20852298]
[1736461024430,0.217497,91955.0,91944.0,0.20852298]
[1736461024881,0.17891047,91956.0,91946.0,0.217518]
[1736461025290,0.17891047,91956.0,91945.0,0.13483487]
[1736461025714,0.217497,91955.0,91945.0,0.13483487]
[1736461025925,0.17891047,91956.0,91945.0,0.13483487]
[1736461025926,0.007,91954.0,91953.0,0.217501]
[1736461026072,0.007,91954.0,91953.0,0.32180076]
[1736461026282,0.217426,91986.0,91953.0,0.10429976]
[1736461026485,0.04336779,91974.0,91968.0,0.217466]
[1736461027452,0.15,91979.0,91968.0,0.217466]
[1736461027699,0.0031702,91969.0,91968.0,0.295966]
[1736461028165,0.0031702,91969.0,91968.0,0.40026576]
[1736461028798,0.0021702,91969.0,91968.0,0.40026576]
[1736461029005,0.0021702,91969.0,91968.0,0.39126574]
[1736461029204,0.0031702,91969.0,91968.0,0.18279976]
[1736461029405,0.0011702,91969.0,91952.0,0.0827]
[1736461029640,0.0011702,91969.0,91942.0,0.0486]
[1736461029641,0.217495,91956.0,91942.0,0.08064815]
[1736461029846,0.217505,91952.0,91943.0,0.10429976]
[1736461030071,0.42247961,91952.0,91943.0,0.10429976]
[1736461030274,0.217505,91952.0,91942.0,0.00014815]
[1736461030453,0.217507,91951.0,91942.0,0.00014815]
[1736461030643,0.217503,91953.0,91942.0,0.00014815]
[1736461030850,0.002,91956.0,91947.0,0.217515]
[1736461031126,0.002,91956.0,91952.0,0.217503]
[1736461031331,0.002,91956.0,91952.0,0.10429976]
[1736461031747,0.002,91956.0,91942.0,0.00014815]
[1736461031971,0.217515,91948.0,91942.0,0.00014815]
[1736461032716,0.219507,91951.0,91942.0,0.00014815]
[1736461032917,0.217507,91951.0,91942.0,0.00014815]
[1736461033325,0.26245737,91951.0,91942.0,0.00014815]
[1736461033761,0.217495,91956.0,91942.0,0.00014815]
[1736461033966,0.003,91951.0,91942.0,0.09544789]
[1736461034172,0.005,91951.0,91942.0,0.09544789]
[1736461034376,0.005,91951.0,91943.0,0.217524]
[1736461034859,0.005,91951.0,91947.0,0.217515]
[1736461035072,0.005,91951.0,91943.0,0.217524]
[1736461035625,0.19368011,91958.0,91943.0,0.217524]
[1736461035832,0.217461,91971.0,91944.0,0.10538728]
[1736461036035,0.009,91956.0,91944.0,0.10538728]
[1736461036240,0.009,91956.0,91955.0,0.217497]
[1736461036447,0.006,91956.0,91955.0,0.217497]
[1736461036938,0.00314807,91958.0,91955.0,0.61899376]
[1736461037164,0.00314807,91958.0,91956.0,0.10429976]
[1736461037370,0.00014807,91958.0,91956.0,0.10429976]
[1736461037729,0.00014807,91958.0,91957.0,0.217492]
[1736461037929,0.00014807,91958.0,91957.0,0.32179176]
[1736461038549,0.20497461,91970.0,91962.0,0.21748]
[1736461038960,0.20497461,91970.0,91962.0,0.20847998]
[1736461039983,0.25005377,91970.0,91962.0,0.20847998]
[1736461040396,0.25205377,91970.0,91962.0,0.20847998]
[1736461040748,0.007,91970.0,91968.0,0.217464]
[1736461040954,0.007,91970.0,91968.0,0.32176376]
[1736461041398,0.00690564,91970.0,91968.0,0.32176376]
[1736461041809,0.00190564,91970.0,91968.0,0.32176376]
[1736461042253,0.00190564,91970.0,91968.0,0.32376376]
[1736461042656,0.15,91979.0,91968.0,0.32376376]
[1736461042866,0.002,91970.0,91968.0,0.32376376]
[1736461043478,0.15,91979.0,91968.0,0.32176376]
[1736461043680,0.217453,91974.0,91964.0,0.217476]
[1736461043893,0.217453,91974.0,91959.0,0.217487]
[1736461044092,0.217474,91965.0,91945.0,0.0798]
[1736461044301,0.20497461,91955.0,91952.0,0.217504]
[1736461044710,0.20497461,91955.0,91952.0,0.435008]
[1736461044914,0.20497461,91955.0,91952.0,0.217504]
[1736461045325,0.20497461,91970.0,91953.0,0.10429976]
[1736461045528,0.20597461,91970.0,91961.0,0.217483]
[1736461045737,0.001,91970.0,91965.0,0.434944]
[1736461045941,0.04359273,91975.0,91961.0,0.10429976]
[1736461046156,0.20497461,91971.0,91961.0,0.10429976]
[1736461046776,0.001,91970.0,91962.0,0.217481]
[1736461046990,0.001,91970.0,91966.0,0.21747]
[1736461047450,0.20497461,91971.0,91966.0,0.21747]
[1736461047654,0.20597461,91971.0,91966.0,0.21747]
[1736461048066,0.001,91971.0,91967.0,0.10429976]
[1736461048280,0.001,91971.0,91968.0,0.217466]
[1736461048486,0.002,91971.0,91970.0,0.217462]
[1736461048688,0.001,91971.0,91970.0,0.32176176]
[1736461049027,0.002,91971.0,91970.0,0.31276174]
[1736461049236,0.15017,91989.0,91970.0,0.31276174]
[1736461049413,0.15017,91989.0,91983.0,0.21743]
[1736461050138,0.15017,91989.0,91987.0,0.217421]
[1736461050547,0.0023181,91989.0,91987.0,0.217421]
[1736461051166,0.0003181,91989.0,91988.0,0.10429976]
[1736461051347,0.0003181,91989.0,91988.0,0.18249976]
[1736461051777,0.0033181,91989.0,91988.0,0.18249976]
[1736461051980,0.00131265,91989.0,91988.0,0.24640914]
[1736461052348,0.00231265,91989.0,91988.0,0.24640914]
[1736461052584,0.00431265,91989.0,91988.0,0.24640914]
[1736461053108,0.00231265,91989.0,91988.0,0.24640914]
[1736461053235,0.00331265,91989.0,91988.0,0.24640914]
[1736461053970,0.00331265,91989.0,91988.0,0.23740912]
[1736461054392,0.00331265,91989.0,91988.0,0.09529974]
[1736461057684,0.00231265,91989.0,91988.0,0.09529974]
[1736461058048,0.00331265,91989.0,91988.0,0.09529974]
[1736461058266,0.15,91987.0,91962.0,0.0782]
[1736461058434,0.15,91987.0,91950.0,0.43073908]
[1736461058435,0.20497461,91972.0,91952.0,0.0782]
[1736461058667,0.12073615,91986.0,91948.0,0.43073908]
[1736461058668,0.20497461,91962.0,91948.0,0.43073908]
[1736461058876,0.2185711,91961.0,91948.0,0.53503884]
[1736461059080,0.15,91960.0,91942.0,0.0782]
[1736461059286,0.15,91951.0,91929.0,0.0792]
[1736461059490,0.15,91951.0,91922.0,0.42173906]
[1736461059702,0.217529,91942.0,91923.0,0.10429976]
[1736461059926,0.217541,91937.0,91924.0,0.21757]
[1736461060134,0.20497461,91950.0,91933.0,0.217549]
[1736461060343,0.15,91944.0,91928.0,0.21756]
[1736461060547,0.15,91944.0,91924.0,0.10444786]
[1736461060722,0.15,91944.0,91932.0,0.217552]
[1736461061341,0.217493,91957.0,91943.0,0.217524]
[1736461061550,0.20497461,91960.0,91933.0,0.10429976]
[1736461061751,0.20497461,91950.0,91935.0,0.217545]
[1736461061981,0.367506,91952.0,91940.0,0.217532]
[1736461062882,0.367506,91952.0,91932.0,0.217549]
[1736461062883,0.001,91944.0,91932.0,0.217549]
[1736461063082,0.001,91944.0,91924.0,0.0001481]
[1736461063083,0.20497461,91942.0,91925.0,0.217568]
[1736461063289,0.15,91935.0,91924.0,0.0001481]
[1736461063512,0.217562,91928.0,91924.0,0.0001481]
[1736461063727,0.15,91931.0,91924.0,0.0001481]
[1736461063938,0.217541,91937.0,91924.0,0.0001481]
[1736461064117,0.15,91936.0,91924.0,0.0001481]
[1736461064328,0.15,91936.0,91925.0,0.217568]
[1736461064710,0.15,91936.0,91925.0,0.435136]
[1736461065294,0.15,91938.0,91925.0,0.217568]
[1736461065498,0.008,91936.0,91930.0,0.217556]
[1736461065705,0.15,91938.0,91926.0,0.217566]
[1736461065901,0.15,91938.0,91905.0,0.0230851]
[1736461066110,0.154,91936.0,91924.0,0.21757]
[1736461066450,0.15,91936.0,91924.0,0.21757]
[1736461067517,0.15,91939.0,91928.0,0.21756]
[1736461067716,0.006,91936.0,91928.0,0.21756]
[1736461067920,0.002,91936.0,91928.0,0.21756]
[1736461068325,0.006,91936.0,91928.0,0.21756]
[1736461068474,0.002,91936.0,91928.0,0.21756]
[1736461068881,0.004,91936.0,91928.0,0.20855998]
[1736461069059,0.15,91939.0,91928.0,0.20855998]
[1736461069262,0.002,91936.0,91928.0,0.20855998]
[1736461069478,0.005,91936.0,91928.0,0.20855998]
[1736461069906,0.003,91936.0,91928.0,0.20855998]
[1736461070342,0.004,91936.0,91928.0,0.20855998]
[1736461070751,0.001,91936.0,91928.0,0.20855998]
[1736461071083,0.004,91936.0,91928.0,0.20855998]
[1736461073807,0.004,91936.0,91924.0,0.21757]
[1736461074016,0.004,91936.0,91924.0,0.20856998]
[1736461074613,0.221544,91936.0,91924.0,0.20856998]
[1736461074824,0.15,91935.0,91928.0,0.217561]
[1736461075843,0.004,91936.0,91928.0,0.217561]
[1736461076098,0.001,91936.0,91928.0,0.217561]
[1736461076318,0.002,91935.0,91925.0,0.217567]
[1736461076697,0.003,91935.0,91925.0,0.217567]
[1736461077259,0.002,91935.0,91929.0,0.217557]
[1736461077471,0.003,91935.0,91926.0,0.217565]
[1736461077743,0.001,91935.0,91930.0,0.217555]
[1736461077955,0.003,91935.0,91930.0,0.217555]
[1736461078162,0.001,91935.0,91930.0,0.217555]
[1736461078619,0.003,91935.0,91934.0,0.217547]
[1736461078886,0.002,91935.0,91934.0,0.217547]
[1736461079056,0.04511521,91944.0,91934.0,0.20854698]
[1736461079199,0.001,91935.0,91934.0,0.20854698]
[1736461079398,0.003,91935.0,91934.0,0.20854698]
[1736461079600,0.002,91935.0,91934.0,0.31284674]
[1736461079803,0.002,91935.0,91934.0,0.39604088]
[1736461080281,0.002,91935.0,91934.0,0.31299481]
[1736461080799,0.04454278,91952.0,91947.0,0.217514]
[1736461081014,0.001,91935.0,91934.0,0.21769507]
[1736461081234,0.001,91935.0,91934.0,0.32199483]
[1736461081448,0.001,91935.0,91934.0,0.42629459]
[1736461081659,0.001,91935.0,91934.0,0.47023975]
[1736461081790,0.15,91967.0,91956.0,0.217494]
[1736461082211,0.15,91967.0,91953.0,0.217502]
[1736461082418,0.15,91967.0,91961.0,0.217483]
[1736461082629,0.04449851,91970.0,91961.0,0.217483]
[1736461082835,0.04449851,91970.0,91954.0,0.2175]
[1736461082836,0.15,91971.0,91959.0,0.217487]
[1736461083036,0.006,91967.0,91959.0,0.217487]
[1736461083511,0.15,91967.0,91957.0,0.217492]
[1736461083922,0.15,91967.0,91957.0,0.20849198]
[1736461084340,0.159,91967.0,91957.0,0.20849198]
[1736461084477,0.15,91967.0,91957.0,0.20849198]
[1736461084876,0.153,91967.0,91957.0,0.20849198]
[1736461085094,0.003,91967.0,91957.0,0.20849198]
[1736461085567,0.004,91967.0,91957.0,0.20849198]
[1736461085981,0.004,91967.0,91953.0,0.0831]
[1736461085982,0.003,91967.0,91953.0,0.0831]
[1736461086139,0.217474,91965.0,91941.0,0.21753]
[1736461086347,0.20475257,91960.0,91940.0,0.0829]
[1736461086596,0.1510881,91959.0,91934.0,0.00014807]
[1736461086816,0.3685761,91959.0,91943.0,0.217524]
[1736461087021,0.217498,91955.0,91943.0,0.217524]
[1736461087486,0.217507,91951.0,91940.0,0.217531]
[1736461087891,0.217498,91955.0,91940.0,0.217531]
[1736461088100,0.217498,91955.0,91944.0,0.217523]
[1736461088793,0.003,91951.0,91944.0,0.217523]
[1736461089094,0.26163923,91955.0,91944.0,0.20852298]
[1736461089799,0.26363923,91955.0,91944.0,0.20852298]
[1736461091154,0.26763923,91955.0,91944.0,0.20852298]
[1736461091860,0.05014123,91955.0,91944.0,0.42604598]
[1736461092840,0.04814123,91955.0,91944.0,0.42604598]
[1736461092997,0.04514123,91955.0,91944.0,0.42604598]
[1736461093840,0.04514123,91955.0,91948.0,0.217512]
[1736461094062,0.04514123,91955.0,91948.0,0.20851198]
[1736461094217,0.04414123,91955.0,91948.0,0.20851198]
[1736461094419,0.004,91955.0,91948.0,0.20851198]
[1736461094766,0.001,91955.0,91948.0,0.20851198]
[1736461095058,0.004,91955.0,91948.0,0.20851198]
[1736461095562,0.003,91955.0,91948.0,0.20851198]
[1736461095771,0.217521,91946.0,91934.0,0.00014807]
[1736461095978,0.10538786,91954.0,91934.0,0.00014807]
[1736461095979,0.367545,91935.0,91934.0,0.00014807]
[1736461096119,0.57184476,91935.0,91934.0,0.00014807]
[1736461096323,0.217609,91908.0,91887.0,8.5e-05]
[1736461096532,0.217613,91906.0,91897.0,8.51e-05]
[1736461096728,0.47191276,91906.0,91897.0,8.51e-05]
[1736461096935,0.64466291,91906.0,91897.0,8.51e-05]
[1736461097409,0.52166291,91906.0,91897.0,8.51e-05]
[1736461097599,0.56312204,91906.0,91897.0,8.51e-05]
[1736461097952,0.52054489,91906.0,91897.0,8.51e-05]
[1736461098154,0.42129498,91906.0,91905.0,0.0010851]
[1736461098361,0.41222036,91906.0,91905.0,8.51e-05]
[1736461098767,0.20368198,91906.0,91905.0,0.0010851]
[1736461098973,0.05368198,91906.0,91897.0,0.20988828]
[1736461099174,0.05668198,91906.0,91901.0,0.217623]
[1736461099378,0.05668198,91906.0,91902.0,0.00108812]
[1736461099576,0.00906967,91906.0,91901.0,0.217623]
[1736461099987,0.01106967,91906.0,91901.0,0.217623]
[1736461100850,0.01106967,91906.0,91902.0,0.217622]
[1736461101058,0.01806967,91906.0,91905.0,0.001]
[1736461101258,6.967e-05,91906.0,91902.0,0.435244]
[1736461101555,6.967e-05,91906.0,91902.0,0.217622]
[1736461103231,6.967e-05,91906.0,91902.0,0.435244]
[1736461104063,6.967e-05,91906.0,91902.0,0.42624398]
[1736461104269,6.967e-05,91906.0,91898.0,0.0829]
[1736461104478,0.01374387,91906.0,91897.0,0.217632]
[1736461104680,0.23135787,91906.0,91893.0,0.217642]
[1736461104880,0.01374387,91906.0,91898.0,0.217632]
[1736461105292,6.967e-05,91906.0,91902.0,0.217621]
[1736461105895,0.10429976,91905.0,91885.0,8.51e-05]
[1736461106096,0.13667229,91897.0,91885.0,8.51e-05]
[1736461106420,0.15,91894.0,91885.0,8.51e-05]
[1736461106630,0.15,91896.0,91885.0,8.51e-05]
[1736461106836,0.15,91896.0,91885.0,0.2177461]
[1736461107690,0.21457229,91920.0,91888.0,0.32195576]
[1736461107906,0.04415718,91910.0,91889.0,0.1256]
[1736461108114,0.1510881,91925.0,91903.0,0.21762]